fUSD/lending_fUSD_20250720
["ID","MTS","AMOUNT","RATE_DAILY","PERIOD"]
[373478436,1753019477888,-480.0,0.00019506,2]
[373478437,1753019477898,-480.0,0.00019506,2]
[373478438,1753019477909,-4784.89,0.00019506,2]
[373478439,1753019477918,-480.0,0.00019506,2]
[373478440,1753019477928,-480.0,0.00019506,2]
[373478441,1753019477938,-480.0,0.00019506,2]
[373478442,1753019477948,-16754.36,0.00019506,2]
[373478443,1753019477958,-480.0,0.00019506,2]
[373478444,1753019477968,-1937.56,0.00019506,2]
[373478445,1753019477978,-480.0,0.00019506,2]
[373478446,1753019477988,-480.0,0.00019506,2]
[373478447,1753019477998,-1894.53,0.00019506,2]
[373478448,1753019478007,-480.0,0.00019506,2]
[373478449,1753019478017,-480.0,0.00019506,2]
[373478450,1753019478027,-597.32,0.00019506,2]
[373478451,1753019478037,-480.0,0.00019506,2]
[373478452,1753019478046,-480.0,0.00019506,2]
[373478453,1753019478056,-480.0,0.00019506,2]
[373478454,1753019478065,-480.0,0.00019506,2]
[373478455,1753019478075,-480.0,0.00019506,2]
[373478456,1753019478084,-673.9,0.00019506,2]
[373478457,1753019478094,-480.0,0.00019506,2]
[373478458,1753019478104,-480.0,0.00019506,2]
[373478459,1753019478113,-480.0,0.00019506,2]
[373478460,1753019478123,-480.0,0.00019506,2]
[373478461,1753019478133,-1980.55,0.00019506,2]
[373478462,1753019478143,-480.0,0.00019506,2]
[373478463,1753019478153,-155.332569,0.00019506,2]
[373478464,1753019478163,-1244.68,0.00019506,2]
[373478465,1753019478173,-480.0,0.00019506,2]
[373478466,1753019478182,-480.0,0.00019506,2]
[373478467,1753019478192,-480.0,0.00019506,2]
[373478468,1753019478202,-480.61581904,0.00019506,2]
[373478469,1753019478211,-480.0,0.00019506,2]
[373478470,1753019478221,-480.0,0.00019506,2]
[373478471,1753019478231,-480.0,0.00019506,2]
[373478472,1753019478240,-480.0,0.00019506,2]
[373478473,1753019478250,-480.0,0.00019506,2]
[373478474,1753019478261,-480.0,0.00019506,2]
[373478475,1753019478271,-1245.96,0.00019506,2]
[373478476,1753019478281,-871.27,0.00019506,2]
[373478477,1753019478290,-7394.507718,0.00019506,2]
[373478478,1753019478300,-6803.71,0.00019506,2]
[373478479,1753019478310,-480.0,0.00019506,2]
[373478480,1753019478319,-480.0,0.00019506,2]
[373478481,1753019478329,-7666.050453,0.00019506,2]
[373478482,1753019478339,-480.0,0.00019506,2]
[373478483,1753019478349,-1360.71,0.00019506,2]
[373478484,1753019478359,-1112.24,0.00019506,2]
[373478485,1753019478369,-480.0,0.00019506,2]
[373478486,1753019478379,-579.47,0.00019506,2]
[373478487,1753019478388,-2360.18,0.00019506,2]
[373478488,1753019478398,-480.0,0.00019506,2]
[373478489,1753019478412,-1144.57,0.00019506,2]
[373478490,1753019478421,-480.0,0.00019506,2]
[373478491,1753019478431,-709.9,0.00019506,2]
[373478492,1753019478441,-625.0396498,0.00019506,2]
[373478493,1753019478454,-957.17,0.00019506,2]
[373478494,1753019478464,-3060.53,0.00019506,2]
[373478495,1753019478474,-480.0,0.00019506,2]
[373478496,1753019478486,-1099.37,0.00019506,2]
[373478497,1753019478496,-400.0,0.00019506,2]
[373478498,1753019478506,-1014.42,0.00019506,2]
[373478499,1753019478516,-1194.62,0.00019506,2]
[373478500,1753019478526,-666.51,0.00019506,2]
[373478501,1753019478536,-480.0,0.00019506,2]
[373478502,1753019478546,-480.0,0.00019506,2]
[373478503,1753019478556,-622.5,0.00019506,2]
[373478504,1753019478566,-1106.14,0.00019506,2]
[373478505,1753019478576,-480.0,0.00019506,2]
[373478506,1753019478587,-480.0,0.00019506,2]
[373478507,1753019478597,-7028.034664,0.00019506,2]
[373478508,1753019478607,-3588.19,0.00019506,2]
[373478509,1753019478617,-1224.46,0.00019506,2]
[373478510,1753019478628,-480.0,0.00019506,2]
[373478511,1753019478638,-4161.68,0.00019506,2]
[373478512,1753019478648,-480.0,0.00019506,2]
[373478513,1753019478661,-480.0,0.00019506,2]
[373478514,1753019478671,-1009.8,0.00019506,2]
[373478515,1753019478681,-480.0,0.00019506,2]
[373478516,1753019478691,-480.0,0.00019506,2]
[373478517,1753019478701,-480.0,0.00019506,2]
[373478518,1753019478711,-759.09,0.00019506,2]
[373478519,1753019478720,-5042.4,0.00019506,2]
[373478520,1753019478730,-480.0,0.00019506,2]
[373478521,1753019478740,-480.0,0.00019506,2]
[373478522,1753019478750,-572.36078091,0.00019506,2]
[373478523,1753019478760,-480.0,0.00019506,2]
[373478524,1753019478770,-985.56034,0.00019506,2]
[373478525,1753019478779,-480.0,0.00019506,2]
[373478527,1753019478790,-465.28,0.00019506,2]
[373478528,1753019478799,-1765.61,0.00019506,2]
[373478529,1753019478808,-480.0,0.00019506,2]
[373478530,1753019478818,-892.48,0.00019506,2]
[373478532,1753019478827,-2738.0,0.00019506,2]
[373478533,1753019478837,-480.0,0.00019506,2]
[373478534,1753019478846,-447.681769,0.00019506,2]
[373478535,1753019478856,-480.0,0.00019506,2]
[373478536,1753019478866,-447.681769,0.00019506,2]
[373478537,1753019478876,-480.0,0.00019506,2]
[373478538,1753019478886,-985.56034,0.00019506,2]
[373478539,1753019478895,-2154.18,0.00019506,2]
[373478540,1753019478906,-480.0,0.00019506,2]
[373478541,1753019478916,-480.0,0.00019506,2]
[373478542,1753019478926,-3701.58,0.00019506,2]
[373478543,1753019478936,-1264.87,0.00019506,2]
[373478544,1753019478946,-563.37,0.00019506,2]
[373478545,1753019478955,-480.0,0.00019506,2]
[373478546,1753019478965,-480.0,0.00019506,2]
[373478547,1753019478974,-1224.02,0.00019506,2]
[373478548,1753019478983,-447.681769,0.00019506,2]
[373478549,1753019478992,-447.681769,0.00019506,2]
[373478550,1753019479002,-480.0,0.00019506,2]
[373478551,1753019479012,-1317.6,0.00019506,2]
[373478552,1753019479021,-1417.35,0.00019506,2]
[373478553,1753019479031,-151.0,0.00019506,2]
[373478554,1753019479040,-494.3,0.00019506,2]
[373478555,1753019479050,-2516.48,0.00019506,2]
[373478556,1753019479059,-480.0,0.00019506,2]
[373478557,1753019479069,-1280.96,0.00019506,2]
[373478558,1753019479078,-2675.44,0.00019506,2]
[373478559,1753019479088,-480.0,0.00019506,2]
[373478560,1753019479097,-1918.3,0.00019506,2]
[373478561,1753019479107,-1639.88,0.00019506,2]
[373478562,1753019479117,-1234.43,0.00019506,2]
[373478563,1753019479127,-480.0,0.00019506,2]
[373478564,1753019479136,-480.0,0.00019506,2]
[373478565,1753019479145,-480.0,0.00019506,2]
[373478566,1753019479156,-480.0,0.00019506,2]
[373478567,1753019479165,-480.0,0.00019506,2]
[373478568,1753019479175,-151.0,0.00019506,2]
[373478569,1753019479185,-480.0,0.00019506,2]
[373478570,1753019479195,-2371.21,0.00019506,2]
[373478571,1753019479204,-2621.63,0.00019506,2]
[373478572,1753019479214,-480.0,0.00019506,2]
[373478573,1753019479224,-4290.9,0.00019506,2]
[373478574,1753019479235,-1781.89,0.00019506,2]
[373478575,1753019479245,-480.0,0.00019506,2]
[373478576,1753019479254,-480.0,0.00019506,2]
[373478577,1753019479264,-673.12,0.00019506,2]
[373478578,1753019479273,-480.0,0.00019506,2]
[373478579,1753019479283,-2112.39,0.00019506,2]
[373478580,1753019479293,-480.0,0.00019506,2]
[373478581,1753019479303,-509.06,0.00019506,2]
[373478582,1753019479312,-578.43,0.00019506,2]
[373478583,1753019479322,-480.0,0.00019506,2]
[373478584,1753019479332,-686.73,0.00019506,2]
[373478585,1753019479342,-1034.48,0.00019506,2]
[373478586,1753019479351,-810.97,0.00019506,2]
[373478587,1753019479361,-1841.2,0.00019506,2]
[373478588,1753019479370,-151.0,0.00019506,2]
[373478589,1753019479379,-480.0,0.00019506,2]
[373478590,1753019479389,-2302.39,0.00019506,2]
[373478591,1753019479398,-480.0,0.00019506,2]
[373478592,1753019479410,-480.0,0.00019506,2]
[373478593,1753019479419,-1656.2,0.00019506,2]
[373478594,1753019479429,-480.0,0.00019506,2]
[373478595,1753019479438,-480.0,0.00019506,2]
[373478596,1753019479449,-1830.19,0.00019506,2]
[373478597,1753019479460,-1875.92,0.00019506,2]
[373478598,1753019479470,-510.33,0.00019506,2]
[373478599,1753019479479,-1530.02,0.00019506,2]
[373478600,1753019479490,-480.0,0.00019506,2]
[373478601,1753019479500,-4600.51,0.00019506,2]
[373478602,1753019479512,-480.0,0.00019506,2]
[373478603,1753019479522,-400.0,0.00019506,2]
[373478604,1753019479534,-1122.81,0.00019506,2]
[373478605,1753019479543,-678.36,0.00019506,2]
[373478606,1753019479553,-480.0,0.00019506,2]
[373478607,1753019479563,-755.77,0.00019506,2]
[373478608,1753019479573,-480.0,0.00019506,2]
[373478609,1753019479583,-1854.23,0.00019506,2]
[373478610,1753019479593,-3405.09,0.00019506,2]
[373478611,1753019479604,-480.0,0.00019506,2]
[373478612,1753019479613,-480.0,0.00019506,2]
[373478613,1753019479623,-438.41449106,0.00019507,2]
[373478614,1753019479633,-160.0,0.00019542,2]
[373478615,1753019479643,-476.8747822,0.00019542,2]
[373478616,1753019479657,-839.31074571,0.00019542,2]
[373478617,1753019479667,-210.86573235,0.00019542,2]
[373478618,1753019479677,-1480.72155,0.0001955,2]
[373478619,1753019479687,-2060.60440337,0.00019564,2]
[373478620,1753019479696,-500.0,0.00019573,2]
[373478621,1753019479706,-500.0,0.00019573,2]
[373478622,1753019479715,-500.0,0.00019573,2]
[373478623,1753019479725,-500.0,0.00019573,2]
[373478624,1753019479735,-438.41449106,0.00019583,2]
[373478625,1753019479744,-74521.5248572,0.00019602,2]
[373478626,1753019479754,-151.0,0.00019615,2]
[373478627,1753019479763,-151.0,0.00019615,2]
[373478628,1753019479772,-151.0,0.00019615,2]
[373478629,1753019479781,-151.0,0.00019615,2]
[373478630,1753019479790,-151.0,0.00019615,2]
[373478631,1753019479799,-480.0,0.00019615,2]
[373478632,1753019479808,-480.0,0.00019615,2]
[373478633,1753019479818,-480.0,0.00019615,2]
[373478634,1753019479827,-362.93851071,0.00019615,2]
[373478635,1753019479836,-480.0,0.00019615,2]
[373478636,1753019479846,-480.0,0.00019615,2]
[373478637,1753019479855,-480.0,0.00019615,2]
[373478638,1753019479864,-480.0,0.00019615,2]
[373478639,1753019479873,-151.0,0.00019615,2]
[373478640,1753019479882,-154.970587,0.00019615,2]
[373478641,1753019479891,-151.0,0.00019615,2]
[373478642,1753019479901,-207.367706,0.00019615,2]
[373478643,1753019479912,-207.367706,0.00019615,2]
[373478644,1753019479922,-151.0,0.00019615,2]
[373478645,1753019479931,-151.0,0.00019615,2]
[373478646,1753019479940,-151.0,0.00019615,2]
[373478647,1753019479949,-2168.69,0.00019615,2]
[373478648,1753019479958,-1171.8,0.00019615,2]
[373478649,1753019479967,-294.18083,0.00019615,2]
[373478650,1753019479976,-3702.53,0.00019615,2]
[373478651,1753019479986,-294.18083,0.00019615,2]
[373478652,1753019479995,-500.0,0.00019615,2]
[373478653,1753019480004,-1608.55,0.00019615,2]
[373478654,1753019480013,-1394.43,0.00019615,2]
[373478655,1753019480022,-163.275317,0.00019615,2]
[373478656,1753019480032,-163.275317,0.00019615,2]
[373478657,1753019480041,-4486.95,0.00019615,2]
[373478658,1753019480050,-1957.62,0.00019615,2]
[373478659,1753019480059,-1000.0,0.00019615,2]
[373478660,1753019480068,-947.48,0.00019615,2]
[373478661,1753019480078,-2119.05,0.00019615,2]
[373478662,1753019480091,-1974.09,0.00019615,2]
[373478663,1753019480100,-486.31928766,0.00019615,2]
[373478664,1753019480110,-4784.89,0.00019615,2]
[373478665,1753019480120,-1106.14,0.00019615,2]
[373478666,1753019480132,-1264.87,0.00019615,2]
[373478667,1753019480147,-2621.63,0.00019615,2]
[373478668,1753019480162,-300.0,0.00019615,2]
[373478669,1753019480174,-151.0,0.00019616,2]
[373478670,1753019480185,-151.0,0.00019616,2]
[373478671,1753019480198,-151.0,0.00019616,2]
[373478672,1753019480210,-151.0,0.00019616,2]
[373478673,1753019480223,-151.0,0.00019616,2]
[373478674,1753019480236,-151.0,0.00019616,2]
[373478675,1753019480250,-152.422035,0.00019616,2]
[373478676,1753019480263,-152.422035,0.00019616,2]
[373478677,1753019480277,-151.0,0.00019616,2]
[373478678,1753019480288,-309.984824,0.00019616,2]
[373478679,1753019480300,-309.984824,0.00019616,2]
[373478680,1753019480312,-151.0,0.00019616,2]
[373478681,1753019480325,-151.0,0.00019616,2]
[373478682,1753019480337,-151.0,0.00019616,2]
[373478683,1753019480350,-151.0,0.00019616,2]
[373478684,1753019480372,-151.0,0.00019616,2]
[373478685,1753019480390,-151.0,0.00019616,2]
[373478686,1753019480406,-151.0,0.00019616,2]
[373478687,1753019480422,-516.81,0.00019616,2]
[373478688,1753019480439,-178.669679,0.00019616,2]
[373478689,1753019480457,-178.669679,0.00019616,2]
[373478690,1753019480473,-480.0,0.00019616,2]
[373478691,1753019480487,-480.0,0.00019616,2]
[373478692,1753019480501,-480.0,0.00019616,2]
[373478693,1753019480514,-340.0,0.00019616,2]
[373478694,1753019480528,-151.0,0.00019616,2]
[373478695,1753019480546,-480.0,0.00019616,2]
[373478696,1753019480560,-480.0,0.00019616,2]
[373478697,1753019480574,-151.0,0.00019616,2]
[373478698,1753019480587,-480.0,0.00019616,2]
[373478699,1753019480598,-151.0,0.00019616,2]
[373478700,1753019480609,-480.0,0.00019616,2]
[373478701,1753019480621,-151.0,0.00019616,2]
[373478702,1753019480636,-480.0,0.00019616,2]
[373478703,1753019480649,-480.0,0.00019616,2]
[373478704,1753019480661,-480.0,0.00019616,2]
[373478705,1753019480671,-480.0,0.00019616,2]
[373478706,1753019480683,-480.0,0.00019616,2]
[373478707,1753019480696,-480.0,0.00019616,2]
[373478708,1753019480711,-480.0,0.00019616,2]
[373478709,1753019480723,-480.0,0.00019616,2]
[373478710,1753019480734,-480.0,0.00019616,2]
[373478711,1753019480744,-480.0,0.00019616,2]
[373478712,1753019480758,-480.0,0.00019616,2]
[373478713,1753019480770,-211.88703273,0.00019616,2]
[373478714,1753019480782,-288.54,0.00019616,2]
[373478715,1753019480793,-480.0,0.00019616,2]
[373478716,1753019480805,-480.0,0.00019616,2]
[373478717,1753019480817,-480.0,0.00019616,2]
[373478718,1753019480829,-480.0,0.00019616,2]
[373478719,1753019480841,-480.0,0.00019616,2]
[373478720,1753019480853,-480.0,0.00019616,2]
[373478721,1753019480866,-480.0,0.00019616,2]
[373478722,1753019480879,-480.0,0.00019616,2]
[373478723,1753019480891,-200.36,0.00019616,2]
[373478724,1753019480906,-480.0,0.00019616,2]
[373478725,1753019480919,-480.0,0.00019616,2]
[373478726,1753019480931,-480.0,0.00019616,2]
[373478727,1753019480943,-480.0,0.00019616,2]
[373478728,1753019480956,-480.0,0.00019616,2]
[373478729,1753019480968,-480.0,0.00019616,2]
[373478730,1753019480982,-480.0,0.00019616,2]
[373478731,1753019480993,-480.0,0.00019616,2]
[373478732,1753019481004,-480.0,0.00019616,2]
[373478733,1753019481016,-151.0,0.00019616,2]
[373478734,1753019481028,-480.0,0.00019616,2]
[373478735,1753019481039,-991.02,0.00019616,2]
[373478736,1753019481051,-323.573606,0.00019616,2]
[373478737,1753019481062,-667.66,0.00019616,2]
[373478738,1753019481073,-480.0,0.00019616,2]
[373478739,1753019481084,-151.0,0.00019616,2]
[373478740,1753019481096,-233.180532,0.00019616,2]
[373478741,1753019481107,-480.0,0.00019616,2]
[373478742,1753019481118,-480.0,0.00019616,2]
[373478743,1753019481130,-151.0,0.00019616,2]
[373478744,1753019481141,-573.77,0.00019616,2]
[373478745,1753019481153,-759.54,0.00019616,2]
[373478746,1753019481164,-240.76,0.00019616,2]
[373478747,1753019481175,-480.0,0.00019616,2]
[373478748,1753019481186,-480.0,0.00019616,2]
[373478749,1753019481197,-480.0,0.00019616,2]
[373478750,1753019481208,-480.0,0.00019616,2]
[373478751,1753019481219,-480.0,0.00019616,2]
[373478752,1753019481231,-5060.37,0.00019616,2]
[373478753,1753019481242,-817.3,0.00019616,2]
[373478754,1753019481254,-1132.31,0.00019616,2]
[373478755,1753019481265,-480.0,0.00019616,2]
[373478756,1753019481276,-453.8,0.00019616,2]
[373478757,1753019481288,-151.0,0.00019616,2]
[373478758,1753019481299,-480.0,0.00019616,2]
[373478759,1753019481311,-480.0,0.00019616,2]
[373478760,1753019481322,-561.39,0.00019616,2]
[373478761,1753019481334,-480.0,0.00019616,2]
[373478762,1753019481345,-1056.44,0.00019616,2]
[373478763,1753019481356,-1722.64,0.00019616,2]
[373478764,1753019481367,-561.76,0.00019616,2]
[373478765,1753019481378,-1184.53,0.00019616,2]
[373478766,1753019481389,-480.0,0.00019616,2]
[373478767,1753019481400,-480.0,0.00019616,2]
[373478768,1753019481411,-640.15,0.00019616,2]
[373478769,1753019481422,-708.25,0.00019616,2]
[373478770,1753019481434,-360.0,0.00019616,2]
[373478771,1753019481445,-654.33,0.00019616,2]
[373478772,1753019481458,-525.6,0.00019616,2]
[373478773,1753019481470,-486.88,0.00019616,2]
[373478774,1753019481481,-2315.41,0.00019616,2]
[373478775,1753019481492,-480.0,0.00019616,2]
[373478776,1753019481502,-480.0,0.00019616,2]
[373478777,1753019481514,-529.02,0.00019616,2]
[373478778,1753019481525,-1036.06,0.00019616,2]
[373478779,1753019481539,-1025.76,0.00019616,2]
[373478780,1753019481551,-480.0,0.00019616,2]
[373478781,1753019481562,-573.81,0.00019616,2]
[373478782,1753019481573,-802.35,0.00019616,2]
[373478783,1753019481585,-151.0,0.00019616,2]
[373478784,1753019481596,-480.0,0.00019616,2]
[373478785,1753019481608,-480.0,0.00019616,2]
[373478786,1753019481619,-480.0,0.00019616,2]
[373478787,1753019481630,-480.0,0.00019616,2]
[373478788,1753019481641,-619.12,0.00019616,2]
[373478789,1753019481654,-480.0,0.00019616,2]
[373478790,1753019481665,-480.0,0.00019616,2]
[373478791,1753019481676,-480.0,0.00019616,2]
[373478792,1753019481687,-381.12,0.00019616,2]
[373478793,1753019481699,-933.84,0.00019616,2]
[373478794,1753019481711,-1899.42,0.00019616,2]
[373478795,1753019481721,-480.0,0.00019616,2]
[373478796,1753019481732,-380.0,0.00019616,2]
[373478797,1753019481743,-1365.37,0.00019616,2]
[373478798,1753019481754,-480.0,0.00019616,2]
[373478799,1753019481766,-480.0,0.00019616,2]
[373478800,1753019481777,-480.0,0.00019616,2]
[373478801,1753019481788,-643.56,0.00019616,2]
[373478802,1753019481800,-480.0,0.00019616,2]
[373478803,1753019481812,-480.0,0.00019616,2]
[373478804,1753019481822,-480.0,0.00019616,2]
[373478805,1753019481835,-480.0,0.00019616,2]
[373478806,1753019481846,-491.14,0.00019616,2]
[373478807,1753019481857,-513.7,0.00019616,2]
[373478808,1753019481868,-380.0,0.00019616,2]
[373478809,1753019481879,-480.0,0.00019616,2]
[373478810,1753019481892,-480.0,0.00019616,2]
[373478811,1753019481904,-742.91,0.00019616,2]
[373478812,1753019481916,-770.53,0.00019616,2]
[373478813,1753019481927,-480.0,0.00019616,2]
[373478814,1753019481939,-480.0,0.00019616,2]
[373478815,1753019481951,-480.0,0.00019616,2]
[373478816,1753019481965,-6566.95,0.00019616,2]
[373478817,1753019481978,-480.0,0.00019616,2]
[373478818,1753019481990,-703.59,0.00019616,2]
[373478819,1753019482000,-559.29,0.00019616,2]
[373478820,1753019482012,-480.0,0.00019616,2]
[373478821,1753019482023,-480.0,0.00019616,2]
[373478822,1753019482034,-480.0,0.00019616,2]
[373478823,1753019482045,-480.0,0.00019616,2]
[373478824,1753019482056,-480.0,0.00019616,2]
[373478825,1753019482067,-480.0,0.00019616,2]
[373478826,1753019482078,-480.0,0.00019616,2]
[373478827,1753019482088,-480.0,0.00019616,2]
[373478828,1753019482099,-480.0,0.00019616,2]
[373478829,1753019482110,-480.0,0.00019616,2]
[373478830,1753019482121,-480.0,0.00019616,2]
[373478831,1753019482132,-622.75,0.00019616,2]
[373478832,1753019482142,-507.08,0.00019616,2]
[373478833,1753019482154,-652.56,0.00019616,2]
[373478834,1753019482165,-480.0,0.00019616,2]
[373478835,1753019482176,-873.97,0.00019616,2]
[373478836,1753019482186,-1133.69,0.00019616,2]
[373478837,1753019482199,-2024.83,0.00019616,2]
[373478838,1753019482212,-1078.11,0.00019616,2]
[373478839,1753019482223,-378.45,0.00019616,2]
[373478840,1753019482234,-469.92,0.00019616,2]
[373478841,1753019482245,-882.42,0.00019616,2]
[373478842,1753019482256,-562.85,0.00019616,2]
[373478843,1753019482268,-808.63,0.00019616,2]
[373478844,1753019482280,-528.35,0.00019616,2]
[373478845,1753019482293,-480.0,0.00019616,2]
[373478846,1753019482305,-480.0,0.00019616,2]
[373478847,1753019482317,-480.0,0.00019616,2]
[373478848,1753019482329,-481.92,0.00019616,2]
[373478849,1753019482341,-480.0,0.00019616,2]
[373478850,1753019482354,-698.42,0.00019616,2]
[373478851,1753019482371,-480.0,0.00019616,2]
[373478852,1753019482383,-1098.19,0.00019616,2]
[373478853,1753019482396,-480.0,0.00019616,2]
[373478854,1753019482407,-480.0,0.00019616,2]
[373478855,1753019482418,-415.21411042,0.00019616,2]
[373478856,1753019482428,-1470.4,0.00019616,2]
[373478857,1753019482439,-480.0,0.00019616,2]
[373478858,1753019482456,-480.0,0.00019616,2]
[373478859,1753019482467,-480.0,0.00019616,2]
[373478860,1753019482478,-480.0,0.00019616,2]
[373478861,1753019482490,-480.0,0.00019616,2]
[373478862,1753019482502,-480.0,0.00019616,2]
[373478863,1753019482513,-480.0,0.00019616,2]
[373478864,1753019482525,-553.30811367,0.00019616,2]
[373478865,1753019482536,-530.18,0.00019616,2]
[373478866,1753019482547,-480.0,0.00019616,2]
[373478867,1753019482559,-542.4,0.00019616,2]
[373478868,1753019482569,-480.0,0.00019616,2]
[373478869,1753019482581,-480.0,0.00019616,2]
[373478870,1753019482592,-466.85,0.00019616,2]
[373478871,1753019482604,-480.0,0.00019616,2]
[373478872,1753019482616,-810.65,0.00019616,2]
[373478873,1753019482627,-509.75,0.00019616,2]
[373478874,1753019482639,-480.0,0.00019616,2]
[373478875,1753019482650,-480.0,0.00019616,2]
[373478876,1753019482662,-480.0,0.00019616,2]
[373478877,1753019482673,-480.0,0.00019616,2]
[373478878,1753019482685,-1074.62,0.00019616,2]
[373478879,1753019482698,-480.0,0.00019616,2]
[373478880,1753019482709,-480.0,0.00019616,2]
[373478881,1753019482720,-274.91752519,0.00019616,2]
[373478882,1753019482732,-585.83,0.00019616,2]
[373478883,1753019482744,-488.38,0.00019616,2]
[373478884,1753019482755,-480.0,0.00019616,2]
[373478885,1753019482766,-1248.2,0.00019616,2]
[373478886,1753019482777,-480.0,0.00019616,2]
[373478887,1753019482788,-190.8,0.00019616,2]
[373478888,1753019482800,-512.42,0.00019616,2]
[373478889,1753019482811,-480.0,0.00019616,2]
[373478890,1753019482822,-480.0,0.00019616,2]
[373478891,1753019482833,-340.0,0.00019616,2]
[373478892,1753019482844,-480.0,0.00019616,2]
[373478893,1753019482855,-480.0,0.00019616,2]
[373478894,1753019482866,-480.0,0.00019616,2]
[373478895,1753019482877,-480.0,0.00019616,2]
[373478896,1753019482890,-480.0,0.00019616,2]
[373478897,1753019482901,-544.02,0.00019616,2]
[373478898,1753019482915,-480.0,0.00019616,2]
[373478899,1753019482926,-480.0,0.00019616,2]
[373478900,1753019482937,-480.0,0.00019616,2]
[373478901,1753019482950,-480.0,0.00019616,2]
[373478902,1753019482961,-989.68,0.00019616,2]
[373478903,1753019482973,-480.0,0.00019616,2]
[373478904,1753019482986,-480.0,0.00019616,2]
[373478905,1753019482997,-1298.15,0.00019616,2]
[373478906,1753019483009,-480.0,0.00019616,2]
[373478907,1753019483020,-480.0,0.00019616,2]
[373478908,1753019483031,-1020.25,0.00019616,2]
[373478909,1753019483042,-507.62,0.00019616,2]
[373478910,1753019483053,-523.15,0.00019616,2]
[373478911,1753019483065,-480.0,0.00019616,2]
[373478912,1753019483076,-294.18083,0.00019616,2]
[373478913,1753019483087,-556.53,0.00019616,2]
[373478914,1753019483098,-480.0,0.00019616,2]
[373478915,1753019483110,-480.0,0.00019616,2]
[373478916,1753019483121,-294.18083,0.00019616,2]
[373478917,1753019483131,-273.66,0.00019616,2]
[373478918,1753019483143,-1136.01,0.00019616,2]
[373478919,1753019483154,-480.0,0.00019616,2]
[373478920,1753019483165,-480.0,0.00019616,2]
[373478921,1753019483176,-480.0,0.00019616,2]
[373478922,1753019483187,-1095.88,0.00019616,2]
[373478923,1753019483198,-480.0,0.00019616,2]
[373478924,1753019483209,-489.5,0.00019616,2]
[373478925,1753019483220,-480.0,0.00019616,2]
[373478926,1753019483231,-480.0,0.00019616,2]
[373478927,1753019483242,-480.0,0.00019616,2]
[373478928,1753019483254,-480.0,0.00019616,2]
[373478929,1753019483265,-151.0,0.00019616,2]
[373478930,1753019483276,-480.0,0.00019616,2]
[373478931,1753019483287,-480.0,0.00019616,2]
[373478932,1753019483298,-480.0,0.00019616,2]
[373478933,1753019483309,-480.0,0.00019616,2]
[373478934,1753019483321,-480.0,0.00019616,2]
[373478935,1753019483332,-480.0,0.00019616,2]
[373478936,1753019483344,-3923.46,0.00019616,2]
[373478937,1753019483356,-2237.11,0.00019616,2]